[Event "Titled Tuesday Blitz January 17 Late 2023"]
[White "Tomb, Maroun"]
[Black "Kaganskiy, Gleb"]
[WhiteFideId "5300398"]
[BlackFideId "4132025"]
[WhiteElo "2090"]
[BlackElo "2205"]
[Result "1-0"]
[Round "04"]
[TimeControl "180+2"]
[Date "2023.01.17"]
[WhiteClock "0:02:35"]
[BlackClock "0:01:38"]

1. e4 {[%clk 0:03:00]}  e6 {[%clk 0:02:59]} 2. d4 {[%clk 0:03:00]}  d5 {[%clk 0:03:00]} 3. Nd2 {[%clk 0:03:01]}  c5 {[%clk 0:02:59]} 4. exd5 {[%clk 0:03:01]}  Qxd5 {[%clk 0:02:57]} 5. Ngf3 {[%clk 0:03:01]}  cxd4 {[%clk 0:02:57]} 6. Bc4 {[%clk 0:03:02]}  Qd6 {[%clk 0:02:55]} 7. Qe2 {[%clk 0:03:03]}  Nc6 {[%clk 0:02:56]} 8. Nb3 {[%clk 0:03:03]}  Nf6 {[%clk 0:02:52]} 9. Bg5 {[%clk 0:03:04]}  Be7 {[%clk 0:02:51]} 10. O-O-O {[%clk 0:03:03]}  O-O {[%clk 0:02:47]} 11. Nbxd4 {[%clk 0:03:04]}  Nxd4 {[%clk 0:02:48]} 12. Rxd4 {[%clk 0:03:05]}  Qc7 {[%clk 0:02:47]} 13. Kb1 {[%clk 0:03:03]}  a6 {[%clk 0:02:40]} 14. Re1 {[%clk 0:03:03]}  b5 {[%clk 0:02:38]} 15. Bb3 {[%clk 0:03:04]}  Bb7 {[%clk 0:02:33]} 16. Ne5 {[%clk 0:03:04]}  Bd5 {[%clk 0:02:31]} 17. Bxf6 {[%clk 0:03:00]}  Bxf6 {[%clk 0:02:23]} 18. Bxd5 {[%clk 0:02:58]}  Bxe5 {[%clk 0:02:08]} 19. Qxe5 {[%clk 0:02:53]}  Qxe5 {[%clk 0:02:09]} 20. Rxe5 {[%clk 0:02:53]}  Rad8 {[%clk 0:02:07]} 21. a4 {[%clk 0:02:39]}  exd5 {[%clk 0:01:52]} 22. axb5 {[%clk 0:02:37]}  axb5 {[%clk 0:01:50]} 23. Rexd5 {[%clk 0:02:37]}  Rxd5 {[%clk 0:01:47]} 24. Rxd5 {[%clk 0:02:38]}  Rb8 {[%clk 0:01:47]} 25. Ka2 {[%clk 0:02:39]}  Kf8 {[%clk 0:01:46]} 26. Kb3 {[%clk 0:02:39]}  Ke7 {[%clk 0:01:47]} 27. Kb4 {[%clk 0:02:40]}  Rc8 {[%clk 0:01:40]} 28. c3 {[%clk 0:02:35]}  Rc4+ {[%clk 0:01:36]} 29. Kxb5 {[%clk 0:02:34]}  Re4 {[%clk 0:01:36]} 30. Rd2 {[%clk 0:02:32]}  Rh4 {[%clk 0:01:34]} 31. h3 {[%clk 0:02:32]}  g5 {[%clk 0:01:34]} 32. b4 {[%clk 0:02:30]}  h5 {[%clk 0:01:33]} 33. c4 {[%clk 0:02:31]}  g4 {[%clk 0:01:34]} 34. hxg4 {[%clk 0:02:31]}  hxg4 {[%clk 0:01:34]} 35. g3 {[%clk 0:02:30]}  Rh2 {[%clk 0:01:34]} 36. c5 {[%clk 0:02:31]}  f5 {[%clk 0:01:35]} 37. Kb6 {[%clk 0:02:31]}  Rh1 {[%clk 0:01:36]} 38. c6 {[%clk 0:02:31]}  Rc1 {[%clk 0:01:36]} 39. c7 {[%clk 0:02:31]}  Rc4 {[%clk 0:01:35]} 40. b5 {[%clk 0:02:31]}  Rc3 {[%clk 0:01:36]} 41. Kb7 {[%clk 0:02:31]}  Rc5 {[%clk 0:01:36]} 42. b6 {[%clk 0:02:32]}  Rc4 {[%clk 0:01:36]} 43. c8=Q {[%clk 0:02:32]}  Rxc8 {[%clk 0:01:36]} 44. Kxc8 {[%clk 0:02:33]}  Kf6 {[%clk 0:01:36]} 45. b7 {[%clk 0:02:34]}  Ke5 {[%clk 0:01:37]} 46. b8=Q+ {[%clk 0:02:35]}  Ke4 {[%clk 0:01:38]} 47. Qf4# {[%clk 0:02:35]} 1-0


[Site "https://www.chess.com"]

[Event "Titled Tuesday Blitz January 17 Late 2023"]
[White "Kalajzic, Ivan"]
[Black "Golubev, Mikhail"]
[WhiteFideId "14506378"]
[BlackFideId "14100983"]
[WhiteElo "2062"]
[BlackElo "2461"]
[Result "0-1"]
[Round "04"]
[TimeControl "180+2"]
[Date "2023.01.17"]
[WhiteClock "0:00:10"]
[BlackClock "0:00:06"]

1. b3 {[%clk 0:02:59]}  d6 {[%clk 0:02:59]} 2. Bb2 {[%clk 0:02:59]}  Nd7 {[%clk 0:02:59]} 3. e3 {[%clk 0:03:00]}  e5 {[%clk 0:02:59]} 4. d4 {[%clk 0:02:58]}  exd4 {[%clk 0:02:54]} 5. Qxd4 {[%clk 0:02:58]}  Ngf6 {[%clk 0:02:52]} 6. Nf3 {[%clk 0:02:55]}  g6 {[%clk 0:02:48]} 7. c4 {[%clk 0:02:55]}  Bg7 {[%clk 0:02:48]} 8. Nc3 {[%clk 0:02:55]}  O-O {[%clk 0:02:46]} 9. Nd5 {[%clk 0:02:49]}  c6 {[%clk 0:02:36]} 10. Nxf6+ {[%clk 0:02:46]}  Nxf6 {[%clk 0:02:26]} 11. Be2 {[%clk 0:02:42]}  Re8 {[%clk 0:02:13]} 12. O-O {[%clk 0:02:39]}  d5 {[%clk 0:01:51]} 13. Rfd1 {[%clk 0:02:35]}  Be6 {[%clk 0:01:51]} 14. cxd5 {[%clk 0:02:17]}  Bxd5 {[%clk 0:01:46]} 15. Qh4 {[%clk 0:02:10]}  Re4 {[%clk 0:01:38]} 16. Bxf6 {[%clk 0:01:48]}  Bxf6 {[%clk 0:01:22]} 17. Qxe4 {[%clk 0:01:47]}  Bxe4 {[%clk 0:01:22]} 18. Rxd8+ {[%clk 0:01:48]}  Rxd8 {[%clk 0:01:21]} 19. Rd1 {[%clk 0:01:45]}  Rxd1+ {[%clk 0:01:01]} 20. Bxd1 {[%clk 0:01:46]}  Kf8 {[%clk 0:01:00]} 21. Kf1 {[%clk 0:01:31]}  Ke7 {[%clk 0:00:59]} 22. Ke2 {[%clk 0:01:31]}  Kd6 {[%clk 0:00:56]} 23. Ne1 {[%clk 0:01:20]}  Kc5 {[%clk 0:00:51]} 24. f3 {[%clk 0:01:15]}  Bb1 {[%clk 0:00:43]} 25. a4 {[%clk 0:01:15]}  Kb4 {[%clk 0:00:37]} 26. Nd3+ {[%clk 0:01:08]}  Kc3 {[%clk 0:00:24]} 27. Nc5 {[%clk 0:01:02]}  b5 {[%clk 0:00:14]} 28. axb5 {[%clk 0:00:40]}  cxb5 {[%clk 0:00:15]} 29. Ne4+ {[%clk 0:00:40]}  Bxe4 {[%clk 0:00:13]} 30. fxe4 {[%clk 0:00:41]}  a5 {[%clk 0:00:12]} 31. g3 {[%clk 0:00:27]}  Be5 {[%clk 0:00:11]} 32. Ke1 {[%clk 0:00:18]}  h5 {[%clk 0:00:11]} 33. g4 {[%clk 0:00:17]}  hxg4 {[%clk 0:00:08]} 34. Bxg4 {[%clk 0:00:14]}  Kxb3 {[%clk 0:00:07]} 35. Bd7 {[%clk 0:00:14]}  a4 {[%clk 0:00:03]} 36. Be8 {[%clk 0:00:11]}  a3 {[%clk 0:00:03]} 37. Bxf7+ {[%clk 0:00:12]}  Kb2 {[%clk 0:00:03]} 38. Kd2 {[%clk 0:00:10]}  a2 {[%clk 0:00:03]} 39. Bxa2 {[%clk 0:00:10]}  Kxa2 {[%clk 0:00:03]} 40. Kd3 {[%clk 0:00:09]}  b4 {[%clk 0:00:04]} 41. Kc4 {[%clk 0:00:09]}  b3 {[%clk 0:00:04]} 42. Kd5 {[%clk 0:00:10]}  Bxh2 {[%clk 0:00:04]} 43. e5 {[%clk 0:00:10]}  Bxe5 {[%clk 0:00:04]} 44. Kxe5 {[%clk 0:00:10]}  b2 {[%clk 0:00:05]} 45. Kf6 {[%clk 0:00:11]}  b1=Q {[%clk 0:00:05]} 46. Kg5 {[%clk 0:00:10]}  Qf5+ {[%clk 0:00:05]} 47. Kh6 {[%clk 0:00:10]}  Qe4 {[%clk 0:00:06]} 0-1


[Site "https://www.chess.com"]

[Event "Titled Tuesday Blitz January 17 Late 2023"]
[White "Ansh M Shah"]
[Black "Haraguchi, Diego Sashaki"]
[WhiteFideId "25033379"]
[BlackFideId "22729925"]
[WhiteElo "2171"]
[BlackElo "2015"]
[Result "1-0"]
[Round "04"]
[TimeControl "180+2"]
[Date "2023.01.17"]
[WhiteClock "0:00:09"]
[BlackClock "0:00:10"]

1. d4 {[%clk 0:02:54]}  Nf6 {[%clk 0:02:58]} 2. c4 {[%clk 0:02:55]}  g6 {[%clk 0:02:57]} 3. h4 {[%clk 0:02:55]}  h5 {[%clk 0:02:54]} 4. Nc3 {[%clk 0:02:54]}  Bg7 {[%clk 0:02:54]} 5. e4 {[%clk 0:02:55]}  d6 {[%clk 0:02:55]} 6. Be2 {[%clk 0:02:55]}  e5 {[%clk 0:02:55]} 7. d5 {[%clk 0:02:55]}  a5 {[%clk 0:02:53]} 8. Nf3 {[%clk 0:02:55]}  Bd7 {[%clk 0:02:50]} 9. Ng5 {[%clk 0:02:55]}  Na6 {[%clk 0:02:49]} 10. f3 {[%clk 0:02:55]}  Nc5 {[%clk 0:02:49]} 11. Be3 {[%clk 0:02:56]}  b6 {[%clk 0:02:47]} 12. Qd2 {[%clk 0:02:55]}  a4 {[%clk 0:02:40]} 13. O-O-O {[%clk 0:02:21]}  Qc8 {[%clk 0:02:33]} 14. Kb1 {[%clk 0:02:19]}  Qb7 {[%clk 0:02:12]} 15. Rdg1 {[%clk 0:02:16]}  Nb3 {[%clk 0:02:02]} 16. axb3 {[%clk 0:02:02]}  axb3 {[%clk 0:02:03]} 17. Kc1 {[%clk 0:01:59]}  b5 {[%clk 0:01:53]} 18. cxb5 {[%clk 0:01:47]}  Bxb5 {[%clk 0:01:54]} 19. Bxb5+ {[%clk 0:01:39]}  Qxb5 {[%clk 0:01:54]} 20. Qe2 {[%clk 0:01:39]}  Qb4 {[%clk 0:01:46]} 21. Qb5+ {[%clk 0:01:15]}  Qxb5 {[%clk 0:01:45]} 22. Nxb5 {[%clk 0:01:16]}  Kd7 {[%clk 0:01:26]} 23. Kd2 {[%clk 0:01:13]}  Ra2 {[%clk 0:01:20]} 24. Rb1 {[%clk 0:01:05]}  Rb8 {[%clk 0:01:07]} 25. Nc3 {[%clk 0:01:01]}  Raa8 {[%clk 0:01:02]} 26. Ra1 {[%clk 0:01:01]}  Ke8 {[%clk 0:00:49]} 27. Rhb1 {[%clk 0:00:52]}  Nd7 {[%clk 0:00:48]} 28. Ra3 {[%clk 0:00:46]}  Rxa3 {[%clk 0:00:35]} 29. bxa3 {[%clk 0:00:45]}  Bh6 {[%clk 0:00:33]} 30. Kd3 {[%clk 0:00:42]}  Ke7 {[%clk 0:00:26]} 31. a4 {[%clk 0:00:28]}  Rb4 {[%clk 0:00:19]} 32. Rb2 {[%clk 0:00:23]}  f5 {[%clk 0:00:17]} 33. Ne6 {[%clk 0:00:21]}  fxe4+ {[%clk 0:00:17]} 34. fxe4 {[%clk 0:00:21]}  Bxe3 {[%clk 0:00:15]} 35. Kxe3 {[%clk 0:00:21]}  c5 {[%clk 0:00:16]} 36. dxc6 {[%clk 0:00:20]}  Nb6 {[%clk 0:00:15]} 37. Nd5+ {[%clk 0:00:19]}  Kxe6 {[%clk 0:00:14]} 38. Nxb6 {[%clk 0:00:18]}  Rxb6 {[%clk 0:00:14]} 39. c7 {[%clk 0:00:16]}  Kd7 {[%clk 0:00:14]} 40. Kd3 {[%clk 0:00:13]}  Kxc7 {[%clk 0:00:14]} 41. Kc3 {[%clk 0:00:14]}  Ra6 {[%clk 0:00:13]} 42. Kxb3 {[%clk 0:00:14]}  Kc6 {[%clk 0:00:13]} 43. Rc2+ {[%clk 0:00:13]}  Kd7 {[%clk 0:00:14]} 44. Kb4 {[%clk 0:00:13]}  Rb6+ {[%clk 0:00:14]} 45. Ka5 {[%clk 0:00:13]}  Rb3 {[%clk 0:00:14]} 46. Rf2 {[%clk 0:00:12]}  Ke6 {[%clk 0:00:14]} 47. Rf8 {[%clk 0:00:12]}  Rb2 {[%clk 0:00:13]} 48. Re8+ {[%clk 0:00:09]}  Kf7 {[%clk 0:00:13]} 49. Rd8 {[%clk 0:00:10]}  Ke7 {[%clk 0:00:13]} 50. Rg8 {[%clk 0:00:07]}  Kf7 {[%clk 0:00:13]} 51. Rd8 {[%clk 0:00:06]}  Ke7 {[%clk 0:00:13]} 52. Rg8 {[%clk 0:00:06]}  Rxg2 {[%clk 0:00:13]} 53. Kb6 {[%clk 0:00:04]}  Rb2+ {[%clk 0:00:13]} 54. Ka6 {[%clk 0:00:04]}  Rb4 {[%clk 0:00:13]} 55. a5 {[%clk 0:00:05]}  Rxe4 {[%clk 0:00:14]} 56. Rxg6 {[%clk 0:00:05]}  Rxh4 {[%clk 0:00:14]} 57. Kb7 {[%clk 0:00:05]}  Rb4+ {[%clk 0:00:15]} 58. Kc6 {[%clk 0:00:05]}  Ra4 {[%clk 0:00:14]} 59. Kb6 {[%clk 0:00:05]}  Ra1 {[%clk 0:00:14]} 60. a6 {[%clk 0:00:06]}  e4 {[%clk 0:00:14]} 61. Rh6 {[%clk 0:00:05]}  d5 {[%clk 0:00:13]} 62. Rxh5 {[%clk 0:00:06]}  Ke6 {[%clk 0:00:14]} 63. a7 {[%clk 0:00:06]}  d4 {[%clk 0:00:13]} 64. Kb7 {[%clk 0:00:06]}  e3 {[%clk 0:00:12]} 65. Rh6+ {[%clk 0:00:06]}  Kd5 {[%clk 0:00:12]} 66. Ra6 {[%clk 0:00:07]}  Rb1+ {[%clk 0:00:12]} 67. Rb6 {[%clk 0:00:06]}  Ra1 {[%clk 0:00:12]} 68. Ra6 {[%clk 0:00:07]}  Rb1+ {[%clk 0:00:12]} 69. Kc7 {[%clk 0:00:07]}  Rc1+ {[%clk 0:00:12]} 70. Kd7 {[%clk 0:00:08]}  e2 {[%clk 0:00:11]} 71. a8=Q+ {[%clk 0:00:08]}  Kc4 {[%clk 0:00:11]} 72. Ra4+ {[%clk 0:00:08]}  Kd3 {[%clk 0:00:11]} 73. Qf3+ {[%clk 0:00:08]}  Kd2 {[%clk 0:00:11]} 74. Ra2+ {[%clk 0:00:08]}  Rc2 {[%clk 0:00:10]} 75. Rxc2+ {[%clk 0:00:09]}  Kxc2 {[%clk 0:00:11]} 76. Qxe2+ {[%clk 0:00:09]}  Kc3 {[%clk 0:00:10]} 77. Qd1 {[%clk 0:00:09]} 1-0


[Site "https://www.chess.com"]

[Event "Titled Tuesday Blitz January 17 Late 2023"]
[White "Leenhouts, Koen"]
[Black "Kostiukov, Alexandr"]
[WhiteFideId "1008439"]
[BlackFideId "14108100"]
[WhiteElo "2447"]
[BlackElo "2271"]
[Result "1-0"]
[Round "04"]
[TimeControl "180+2"]
[Date "2023.01.17"]
[WhiteClock "0:00:12"]
[BlackClock "0:00:03"]

1. d4 {[%clk 0:03:00]}  g6 {[%clk 0:01:54]} 2. e4 {[%clk 0:02:37]}  Bg7 {[%clk 0:01:54]} 3. c4 {[%clk 0:02:37]}  d6 {[%clk 0:01:54]} 4. Nc3 {[%clk 0:02:37]}  e5 {[%clk 0:01:54]} 5. d5 {[%clk 0:02:32]}  f5 {[%clk 0:01:48]} 6. exf5 {[%clk 0:02:23]}  Bxf5 {[%clk 0:01:46]} 7. Bd3 {[%clk 0:02:20]}  Nf6 {[%clk 0:01:45]} 8. Bg5 {[%clk 0:02:15]}  O-O {[%clk 0:01:43]} 9. Bxf5 {[%clk 0:02:07]}  gxf5 {[%clk 0:01:42]} 10. Nge2 {[%clk 0:02:07]}  Nbd7 {[%clk 0:01:39]} 11. O-O {[%clk 0:02:03]}  a5 {[%clk 0:01:36]} 12. Kh1 {[%clk 0:01:52]}  Nc5 {[%clk 0:01:36]} 13. b3 {[%clk 0:01:44]}  Qe8 {[%clk 0:01:31]} 14. Be3 {[%clk 0:01:27]}  b6 {[%clk 0:01:23]} 15. f3 {[%clk 0:01:24]}  f4 {[%clk 0:00:58]} 16. Bxc5 {[%clk 0:01:20]}  bxc5 {[%clk 0:00:57]} 17. Qc2 {[%clk 0:01:12]}  Qh5 {[%clk 0:00:46]} 18. Ne4 {[%clk 0:01:08]}  Nxe4 {[%clk 0:00:35]} 19. Qxe4 {[%clk 0:01:09]}  Rf6 {[%clk 0:00:34]} 20. Nc3 {[%clk 0:00:57]}  Rh6 {[%clk 0:00:33]} 21. h3 {[%clk 0:00:56]}  Rf8 {[%clk 0:00:23]} 22. Rf2 {[%clk 0:00:49]}  Qh4 {[%clk 0:00:21]} 23. Raf1 {[%clk 0:00:41]}  Rg6 {[%clk 0:00:17]} 24. Qe1 {[%clk 0:00:27]}  Rg3 {[%clk 0:00:16]} 25. Ne4 {[%clk 0:00:26]}  Rg6 {[%clk 0:00:14]} 26. Re2 {[%clk 0:00:23]}  Qe7 {[%clk 0:00:14]} 27. Qxa5 {[%clk 0:00:22]}  Rf5 {[%clk 0:00:11]} 28. Qa8+ {[%clk 0:00:20]}  Bf8 {[%clk 0:00:11]} 29. Qc8 {[%clk 0:00:19]}  Rh5 {[%clk 0:00:11]} 30. a4 {[%clk 0:00:18]}  Kg7 {[%clk 0:00:09]} 31. a5 {[%clk 0:00:17]}  Rgh6 {[%clk 0:00:10]} 32. a6 {[%clk 0:00:17]}  c6 {[%clk 0:00:08]} 33. Qb7 {[%clk 0:00:12]}  Rxh3+ {[%clk 0:00:04]} 34. gxh3 {[%clk 0:00:13]}  Rxh3+ {[%clk 0:00:01]} 35. Rh2 {[%clk 0:00:12]}  Rg3 {[%clk 0:00:02]} 36. Qxe7+ {[%clk 0:00:11]}  Bxe7 {[%clk 0:00:03]} 37. Nxg3 {[%clk 0:00:11]}  fxg3 {[%clk 0:00:03]} 38. Rg2 {[%clk 0:00:12]} 1-0


[Site "https://www.chess.com"]

[Event "Titled Tuesday Blitz January 17 Late 2023"]
[White "Quinones Garcia, Santiago"]
[Black "Hnydiuk, Aleksander"]
[WhiteFideId "4408497"]
[BlackFideId "1109057"]
[WhiteElo "2248"]
[BlackElo "2363"]
[Result "0-1"]
[Round "04"]
[TimeControl "180+2"]
[Date "2023.01.17"]
[WhiteClock "0:01:41"]
[BlackClock "0:01:06"]

1. d4 {[%clk 0:02:56]}  Nf6 {[%clk 0:02:57]} 2. c4 {[%clk 0:02:56]}  e6 {[%clk 0:02:57]} 3. Nc3 {[%clk 0:02:57]}  Bb4 {[%clk 0:02:56]} 4. Qc2 {[%clk 0:02:57]}  c5 {[%clk 0:02:53]} 5. dxc5 {[%clk 0:02:57]}  Bxc5 {[%clk 0:02:54]} 6. Nf3 {[%clk 0:02:57]}  O-O {[%clk 0:02:49]} 7. Bg5 {[%clk 0:02:56]}  h6 {[%clk 0:02:49]} 8. Bh4 {[%clk 0:02:56]}  Nc6 {[%clk 0:02:46]} 9. e3 {[%clk 0:02:56]}  b6 {[%clk 0:02:39]} 10. a3 {[%clk 0:02:56]}  Bb7 {[%clk 0:02:39]} 11. Be2 {[%clk 0:02:56]}  Rc8 {[%clk 0:02:34]} 12. O-O {[%clk 0:02:55]}  Be7 {[%clk 0:02:33]} 13. Rfd1 {[%clk 0:02:54]}  a6 {[%clk 0:02:32]} 14. b4 {[%clk 0:02:51]}  Ng4 {[%clk 0:02:23]} 15. Bxe7 {[%clk 0:02:49]}  Qxe7 {[%clk 0:02:24]} 16. Qd2 {[%clk 0:02:45]}  Nce5 {[%clk 0:02:19]} 17. Qd4 {[%clk 0:02:37]}  Qf6 {[%clk 0:02:03]} 18. Qxb6 {[%clk 0:02:03]}  Nxf3+ {[%clk 0:01:45]} 19. gxf3 {[%clk 0:02:03]}  Bxf3 {[%clk 0:01:39]} 20. Bxf3 {[%clk 0:02:00]}  Qxf3 {[%clk 0:01:40]} 21. Rd2 {[%clk 0:02:00]}  Rxc4 {[%clk 0:01:31]} 22. Nd1 {[%clk 0:01:41]}  Nxh2 {[%clk 0:01:18]} 23. Rd4 {[%clk 0:01:41]}  Qh3 {[%clk 0:01:06]} 0-1


[Site "https://www.chess.com"]

[Event "Titled Tuesday Blitz January 17 Late 2023"]
[White "Rodriguez Fontecha, Marcos"]
[Black "Smith, Garrett L"]
[WhiteFideId "2256576"]
[BlackFideId "2024829"]
[WhiteElo "2309"]
[BlackElo "2047"]
[Result "1-0"]
[Round "04"]
[TimeControl "180+2"]
[Date "2023.01.17"]
[WhiteClock "0:00:34"]
[BlackClock "0:00:15"]

1. d4 {[%clk 0:03:00]}  Nf6 {[%clk 0:02:59]} 2. Nf3 {[%clk 0:03:00]}  g6 {[%clk 0:02:59]} 3. Bf4 {[%clk 0:03:00]}  Nh5 {[%clk 0:02:58]} 4. Bg5 {[%clk 0:02:59]}  h6 {[%clk 0:02:59]} 5. Bd2 {[%clk 0:02:54]}  c5 {[%clk 0:02:59]} 6. Bc3 {[%clk 0:02:53]}  Bg7 {[%clk 0:02:56]} 7. dxc5 {[%clk 0:02:50]}  Qc7 {[%clk 0:02:52]} 8. Bxg7 {[%clk 0:02:48]}  Nxg7 {[%clk 0:02:52]} 9. Qd4 {[%clk 0:02:49]}  O-O {[%clk 0:02:48]} 10. Nc3 {[%clk 0:02:44]}  Nc6 {[%clk 0:02:33]} 11. Qd2 {[%clk 0:02:40]}  Ne5 {[%clk 0:02:17]} 12. Qxh6 {[%clk 0:02:32]}  Nf5 {[%clk 0:02:14]} 13. Qd2 {[%clk 0:02:27]}  Qxc5 {[%clk 0:02:09]} 14. e3 {[%clk 0:02:23]}  Nxf3+ {[%clk 0:02:03]} 15. gxf3 {[%clk 0:02:24]}  b6 {[%clk 0:02:04]} 16. Bd3 {[%clk 0:02:20]}  Bb7 {[%clk 0:02:02]} 17. Be4 {[%clk 0:02:20]}  Bc6 {[%clk 0:01:55]} 18. Rg1 {[%clk 0:02:13]}  Rfd8 {[%clk 0:01:49]} 19. b4 {[%clk 0:02:10]}  Qe5 {[%clk 0:01:47]} 20. b5 {[%clk 0:02:05]}  Bxe4 {[%clk 0:01:36]} 21. fxe4 {[%clk 0:02:00]}  Nh4 {[%clk 0:01:32]} 22. Rg3 {[%clk 0:01:30]}  Rac8 {[%clk 0:01:12]} 23. Qd4 {[%clk 0:01:27]}  Qh5 {[%clk 0:01:12]} 24. Nd5 {[%clk 0:01:05]}  Nf3+ {[%clk 0:00:47]} 25. Rxf3 {[%clk 0:01:01]}  Qxf3 {[%clk 0:00:48]} 26. Nxe7+ {[%clk 0:00:59]}  Kh7 {[%clk 0:00:38]} 27. Nxc8 {[%clk 0:00:51]}  Qh1+ {[%clk 0:00:38]} 28. Kd2 {[%clk 0:00:47]}  Qxh2 {[%clk 0:00:34]} 29. Nd6 {[%clk 0:00:42]}  Qxf2+ {[%clk 0:00:33]} 30. Kd3 {[%clk 0:00:42]}  Qg2 {[%clk 0:00:17]} 31. Qf6 {[%clk 0:00:35]}  Rc8 {[%clk 0:00:15]} 32. Nxc8 {[%clk 0:00:34]} 1-0


[Site "https://www.chess.com"]

[Event "Titled Tuesday Blitz January 17 Late 2023"]
[White "Carbone, Diego"]
[Black "Kovacs, Klara"]
[WhiteFideId "3002179"]
[BlackFideId "733210"]
[WhiteElo "2336"]
[BlackElo "2121"]
[Result "1-0"]
[Round "04"]
[TimeControl "180+2"]
[Date "2023.01.17"]
[WhiteClock "0:00:09"]
[BlackClock "0:00:14"]

1. d4 {[%clk 0:03:00]}  e6 {[%clk 0:02:45]} 2. c4 {[%clk 0:02:59]}  Nf6 {[%clk 0:02:43]} 3. g3 {[%clk 0:02:56]}  d5 {[%clk 0:02:42]} 4. Nf3 {[%clk 0:02:54]}  dxc4 {[%clk 0:02:42]} 5. Bg2 {[%clk 0:02:53]}  Bb4+ {[%clk 0:02:42]} 6. Bd2 {[%clk 0:02:52]}  c5 {[%clk 0:02:42]} 7. Bxb4 {[%clk 0:02:47]}  cxb4 {[%clk 0:02:43]} 8. Ne5 {[%clk 0:02:48]}  O-O {[%clk 0:02:43]} 9. O-O {[%clk 0:02:42]}  Nbd7 {[%clk 0:02:36]} 10. Nxc4 {[%clk 0:02:38]}  Nb6 {[%clk 0:02:36]} 11. Ne5 {[%clk 0:02:35]}  Rb8 {[%clk 0:02:34]} 12. a3 {[%clk 0:02:35]}  bxa3 {[%clk 0:02:33]} 13. Nxa3 {[%clk 0:02:35]}  a6 {[%clk 0:02:32]} 14. Qb3 {[%clk 0:02:28]}  Nbd5 {[%clk 0:02:29]} 15. Nc6 {[%clk 0:02:13]}  bxc6 {[%clk 0:02:30]} 16. Qxb8 {[%clk 0:02:13]}  Qe7 {[%clk 0:02:20]} 17. e4 {[%clk 0:02:03]}  Nb4 {[%clk 0:02:18]} 18. Nc4 {[%clk 0:01:57]}  c5 {[%clk 0:01:50]} 19. dxc5 {[%clk 0:01:41]}  Qxc5 {[%clk 0:01:51]} 20. Rac1 {[%clk 0:01:38]}  Nd3 {[%clk 0:01:32]} 21. Rc2 {[%clk 0:01:37]}  e5 {[%clk 0:00:59]} 22. Qd6 {[%clk 0:01:34]}  Qxd6 {[%clk 0:00:59]} 23. Nxd6 {[%clk 0:01:35]}  Be6 {[%clk 0:00:59]} 24. Rd1 {[%clk 0:01:24]}  Nb4 {[%clk 0:00:57]} 25. Rcc1 {[%clk 0:01:24]}  g6 {[%clk 0:00:55]} 26. Nc4 {[%clk 0:01:23]}  Na2 {[%clk 0:00:48]} 27. Rc2 {[%clk 0:01:15]}  Nb4 {[%clk 0:00:48]} 28. Rc3 {[%clk 0:01:15]}  Na2 {[%clk 0:00:49]} 29. Rf3 {[%clk 0:00:44]}  Nxe4 {[%clk 0:00:35]} 30. Nxe5 {[%clk 0:00:41]}  f6 {[%clk 0:00:34]} 31. Re3 {[%clk 0:00:20]}  Nxf2 {[%clk 0:00:28]} 32. Rd6 {[%clk 0:00:19]}  Nh3+ {[%clk 0:00:26]} 33. Kh1 {[%clk 0:00:17]}  Nf2+ {[%clk 0:00:25]} 34. Kg1 {[%clk 0:00:18]}  Nh3+ {[%clk 0:00:25]} 35. Bxh3 {[%clk 0:00:18]}  Bxh3 {[%clk 0:00:23]} 36. Nd3 {[%clk 0:00:12]}  Rc8 {[%clk 0:00:19]} 37. Rxa6 {[%clk 0:00:11]}  Nc1 {[%clk 0:00:19]} 38. Nxc1 {[%clk 0:00:06]}  Rxc1+ {[%clk 0:00:18]} 39. Kf2 {[%clk 0:00:07]}  Rc2+ {[%clk 0:00:17]} 40. Re2 {[%clk 0:00:07]}  Rc5 {[%clk 0:00:14]} 41. Rxf6 {[%clk 0:00:07]}  Kg7 {[%clk 0:00:14]} 42. Rf4 {[%clk 0:00:07]}  h5 {[%clk 0:00:13]} 43. Rd2 {[%clk 0:00:08]}  Kh6 {[%clk 0:00:13]} 44. b4 {[%clk 0:00:07]}  Rc1 {[%clk 0:00:12]} 45. Rb2 {[%clk 0:00:05]}  Rf1+ {[%clk 0:00:12]} 46. Ke3 {[%clk 0:00:06]}  Re1+ {[%clk 0:00:12]} 47. Kd4 {[%clk 0:00:06]}  Rd1+ {[%clk 0:00:13]} 48. Kc5 {[%clk 0:00:06]}  Rc1+ {[%clk 0:00:13]} 49. Rc4 {[%clk 0:00:07]}  Re1 {[%clk 0:00:12]} 50. b5 {[%clk 0:00:07]}  Re5+ {[%clk 0:00:12]} 51. Kd6 {[%clk 0:00:07]}  Re6+ {[%clk 0:00:12]} 52. Kd5 {[%clk 0:00:06]}  Re1 {[%clk 0:00:12]} 53. b6 {[%clk 0:00:06]}  Be6+ {[%clk 0:00:11]} 54. Kc5 {[%clk 0:00:05]}  Bxc4 {[%clk 0:00:12]} 55. Kxc4 {[%clk 0:00:06]}  Re8 {[%clk 0:00:13]} 56. b7 {[%clk 0:00:06]}  Rb8 {[%clk 0:00:13]} 57. Kc5 {[%clk 0:00:07]}  g5 {[%clk 0:00:13]} 58. Kc6 {[%clk 0:00:08]}  h4 {[%clk 0:00:14]} 59. gxh4 {[%clk 0:00:08]}  gxh4 {[%clk 0:00:14]} 60. Kc7 {[%clk 0:00:08]}  Rxb7+ {[%clk 0:00:14]} 61. Kxb7 {[%clk 0:00:09]} 1-0


[Site "https://www.chess.com"]

[Event "Titled Tuesday Blitz January 17 Late 2023"]
[White "Jordao Barbosa, Marcio"]
[Black "Pein, Jonathan"]
[WhiteFideId "2116219"]
[BlackFideId "417092"]
[WhiteElo "2105"]
[BlackElo "2265"]
[Result "0-1"]
[Round "04"]
[TimeControl "180+2"]
[Date "2023.01.17"]
[WhiteClock "0:00:17"]
[BlackClock "0:00:13"]

1. e4 {[%clk 0:03:00]}  e5 {[%clk 0:02:57]} 2. Nf3 {[%clk 0:03:01]}  d6 {[%clk 0:02:58]} 3. d4 {[%clk 0:03:00]}  exd4 {[%clk 0:02:58]} 4. Nxd4 {[%clk 0:03:01]}  Nf6 {[%clk 0:02:59]} 5. Nc3 {[%clk 0:03:01]}  g6 {[%clk 0:03:00]} 6. Bg5 {[%clk 0:02:52]}  Bg7 {[%clk 0:02:59]} 7. Qd2 {[%clk 0:02:52]}  h6 {[%clk 0:03:00]} 8. Bf4 {[%clk 0:02:51]}  Nc6 {[%clk 0:03:00]} 9. Nb3 {[%clk 0:02:47]}  g5 {[%clk 0:02:54]} 10. Be3 {[%clk 0:02:47]}  Ng4 {[%clk 0:02:54]} 11. O-O-O {[%clk 0:02:45]}  Nxe3 {[%clk 0:02:54]} 12. Qxe3 {[%clk 0:02:45]}  O-O {[%clk 0:02:52]} 13. h4 {[%clk 0:02:35]}  a5 {[%clk 0:02:52]} 14. a4 {[%clk 0:02:32]}  Be6 {[%clk 0:02:41]} 15. Nd2 {[%clk 0:02:30]}  Qf6 {[%clk 0:02:36]} 16. Bc4 {[%clk 0:02:16]}  Rfe8 {[%clk 0:02:27]} 17. f3 {[%clk 0:02:11]}  Nb4 {[%clk 0:02:21]} 18. hxg5 {[%clk 0:01:59]}  hxg5 {[%clk 0:02:22]} 19. Rh5 {[%clk 0:01:48]}  d5 {[%clk 0:02:11]} 20. exd5 {[%clk 0:01:39]}  Bg4 {[%clk 0:01:59]} 21. Qxg5 {[%clk 0:01:37]}  Bxh5 {[%clk 0:01:59]} 22. Qxh5 {[%clk 0:01:37]}  Re5 {[%clk 0:01:28]} 23. Qg4 {[%clk 0:01:30]}  Rg5 {[%clk 0:01:27]} 24. Qh3 {[%clk 0:01:28]}  Qh6 {[%clk 0:01:20]} 25. Qd7 {[%clk 0:01:19]}  Rxg2 {[%clk 0:01:18]} 26. d6 {[%clk 0:01:17]}  Qg6 {[%clk 0:01:18]} 27. Nde4 {[%clk 0:01:10]}  Rxc2+ {[%clk 0:01:15]} 28. Kb1 {[%clk 0:01:10]}  cxd6 {[%clk 0:01:13]} 29. Rxd6 {[%clk 0:01:03]}  Qg1+ {[%clk 0:00:48]} 30. Rd1 {[%clk 0:01:02]}  Qg6 {[%clk 0:00:45]} 31. Rd6 {[%clk 0:01:01]}  Qh5 {[%clk 0:00:45]} 32. Bb3 {[%clk 0:00:29]}  Rg2 {[%clk 0:00:39]} 33. Nf6+ {[%clk 0:00:27]}  Bxf6 {[%clk 0:00:37]} 34. Rxf6 {[%clk 0:00:27]}  Qh7+ {[%clk 0:00:19]} 35. Ne4 {[%clk 0:00:18]}  Rg1+ {[%clk 0:00:19]} 36. Bd1 {[%clk 0:00:18]}  Rf8 {[%clk 0:00:17]} 37. Rf5 {[%clk 0:00:17]}  Qh1 {[%clk 0:00:13]} 0-1


[Site "https://www.chess.com"]